[Event "Fagernes Chess GM-Swiss 2025"]
[Site "Fagernes"]
[Date "2025.04.17"]
[Round "6.33"]
[White "Strand, Amund Pihl"]
[Black "Haugen, Lars Tormod"]
[Result "0-1"]
[Annotator "NA RC"]
[ECO "B30"]
[WhiteElo "1914"]
[BlackElo "1988"]
[PlyCount "62"]
[EventDate "2025.04.12"]
[EventCountry "NOR"]
[SourceTitle "playchess.com"]
[Source "ChessBase"]
[SourceQuality "1"]
[TimeControl "40/6000+30:2400+30"]

1. e4 {[%emt 0:04:09]} c5 {[%emt 0:02:10]} 2. Nf3 {[%emt 0:00:16]} Nc6 {[%emt 0:00:52]} 3. Bb5 {[%emt 0:01:03]} e5 {[%emt 0:01:12]} 4. O-O {[%emt 0:02:40]} Bd6 {[%emt 0:00:43]} 5. c3 {[%emt 0:02:59]} a6 {[%emt 0:07:02]} 6. Bxc6 {[%emt 0:02:39]} dxc6 {[%emt 0:01:23]} 7. h3 {[%emt 0:11:22]} Ne7 {[%emt 0:08:05]} 8. Na3 {[%emt 0:10:53]} Ng6 {[%emt 0:02:07]} 9. d3 {[%emt 0:07:01]} O-O {[%emt 0:04:57]} 10. Be3 {[%emt 0:02:51]} b6 {[%emt 0:03:03]} 11. Nc4 {[%emt 0:04:42]} Bc7 {[%emt 0:00:11]} 12. a4 {[%emt 0:04:51]} a5 {[%emt 0:02:16]} 13. Qe2 {[%emt 0:06:45]} Ba6 {[%emt 0:30:00]} 14. Rfd1 {[%emt 0:02:18]} Qe7 {[%emt 0:04:08]} 15. Ncd2 {[%emt 0:11:42]} Rad8 {[%emt 0:01:46]} 16. Nf1 {[%emt 0:00:51]} Qd6 {[%emt 0:12:22]} 17. Ne1 {[%emt 0:02:06]} Nf4 {[%emt 0:01:40]} 18. Bxf4 {[%emt 0:02:27]} exf4 {[%emt 0:00:03]} 19. Qf3 {[%emt 0:01:42]} f5 {[%emt 0:00:49]} 20. exf5 {[%emt 0:08:37]} Rxf5 {[%emt 0:06:04]} 21. d4 {[%emt 0:00:47]} Qe6 {[%emt 0:04:08]} 22. Rd2 {[%emt 0:11:28]} cxd4 {[%emt 0:01:03]} 23. Rad1 {[%emt 0:02:22]} Re8 {[%emt 0:10:12]} 24. Nc2 {[%emt 0:02:46]} c5 {[%emt 0:03:28]} 25. Re1 {[%emt 0:00:45]} Re5 {[%emt 0:00:57]} 26. Rxe5 {[%emt 0:00:30]} Qxe5 {[%emt 0:00:38]} 27. cxd4 {[%emt 0:00:17]} cxd4 {[%emt 0:00:19]} 28. Rxd4 {[%emt 0:01:03]} Qe2 {[%emt 0:02:10]} 29. Qxe2 {[%emt 0:02:34]} Rxe2 {[%emt 0:00:02]} 30. Nce3 {[%emt 0:00:33]} fxe3 {[%emt 0:00:06]} 31. Nxe3 {[%emt 0:00:25]} Re1+ {[%emt 0:00:14]} 0-1